{"text_format":"3","workbook":"xlsx","n_sheets":2,"sheets":["Questionnaire","Synthèse"],"not_rendered":{"charts":2,"images":1,"macros":1,"defined_names":1},"read":"whole","date_system":"1900"}

{"sheet":"Questionnaire","index":0,"n_rows":82,"n_cols":7,"rows_kept":82,"merged":[[0,0,2,2],[0,3,2,4],[3,0,21,0],[3,1,5,1],[3,6,5,6],[6,1,10,1],[6,6,10,6],[11,1,14,1],[11,6,14,6],[15,1,21,1],[15,6,21,6],[22,0,29,0],[22,1,24,1],[22,6,24,6],[25,1,29,1],[25,6,29,6],[30,0,38,0],[30,1,33,1],[30,6,33,6],[34,1,38,1],[34,6,38,6],[39,0,42,0],[39,1,42,1],[39,6,42,6],[46,0,46,3]]}
[{"$nulls":3},"PREVENTION DES RISQUES EN CHIRURGIE BOVINE : AUTO-EVALUATION"]
[]
[{"$nulls":5},"Résultat","Données"]
["AVANT L'INTERVENTION","Diagnostic",1,"Je m'appuie en premier lieu sur un examen clinique (ou obstétrical, le cas échéant) détaillé pour établir un diagnostic","Jamais",{"$f":"(IF(E4=\"Jamais\",\"0\",IF(E4=\"Parfois\",\"1\",IF(E4=\"Souvent\",\"3\",IF(E4=\"Toujours\",\"5\")))))*1","v":0},{"$f":"SUM(F4:F6)","v":0}]
[null,null,2,"En cas d'infection, je réalise un bilan d'extension","Jamais",{"$f":"(IF(E5=\"Jamais\",\"0\",IF(E5=\"Parfois\",\"1\",IF(E5=\"Souvent\",\"3\",IF(E5=\"Toujours\",\"5\")))))*1","v":0}]
[null,null,3,"Je recherche systématiquement les contre-indications potentielles à l'intervention","Jamais",0]
[null,"Information pré-opératoire",4," J'expose à l'éleveur les solutions thérapeutiques et leurs coûts respectifs","Jamais",0,{"$f":"SUM(F7:F11)","v":0}]
[null,null,5,"J'ai une discussion bénéfice-risque avec l 'éleveur","Jamais",0]
[null,null,6,"J'obtiens le consentement formel (tracé) de l'éleveur préalablement éclairé","Jamais",0]
[null,null,7,"Je n'hésite pas à confier cette intervention à un confrère plus spécialisé, plus expérimenté le cas échéant","Jamais",0]
[null,null,8,"Pour une intervention que je n'effectue pas en routine, je fais appel à des aides cognitives","Jamais",0]
[null,"Organisation",9,"En obstétrique, avant la césarienne, je vérifie la vitalité du fœtus, j'en informe l'éleveur ","Jamais",0,{"$f":"SUM(F12:F15)","v":0}]
[null,null,10,"En obstétrique, avant la césarienne, je vérifie l'absence de lésions, notamment iatrogènes, des voies génitales; j'informe l'éleveur","Jamais",{"$f":"(IF(E13=\"Jamais\",\"0\",IF(E13=\"Parfois\",\"1\",IF(E13=\"Souvent\",\"3\",IF(E13=\"Toujours\",\"5\")))))*1","v":0}]
[null,null,11,"Les interventions (hors urgences) sont toujours programmées dans un temps compatible avec une réalisation dans des conditions sereines (durée, planning, stress)","Jamais",0]
[null,null,12,"Je donne des instructions en vue d'une bonne préparation hygiénique et médicale de l'animal:hydratation, antibioprophylaxie, etc…","Jamais",0]
[null,"Préparation opératoire",13,"Je requiers l'assistance d'un nombre  adapté de personnes expérimentées ou habituées","Jamais",0,{"$f":"SUM(F16:F22)","v":0}]
[null,null,14,"Je donne des instructions fermes en vue d'une bonne préparation de l’environnement opératoire : choix du local, nettoyage, rangement, aménagement, éclairage, table, matériel de contention; emplacement suffisamment spacieux et éclairé, confort thermique, eau propre, linges propres... ","Jamais",0]
[null,null,15,"Le matériel chirurgical est  conditionné et stérilisé  selon des règles préétablies","Jamais",0]
[null,null,16,"J'utilise un protocole de biosécurité entre chaque intervention, entre chaque exploitation","Jamais",0]
[null,null,17,"Je m'assure que la sécurité des personnes intervenant autour de l'animal est assurée , je dispose de protocole ou de directives en ce sens (sécurité et confort d'exécution)","Jamais",0]
[null,null,18,"Je m'assure que la sécurité de l'animal est prise en compte grâce à  des modalités de contention protocolisées (sécurité et confort de l'animal)","Jamais",0]
[null,null,19,"Je m'assure d'une bonne préparation cutanée de l'animal","Jamais",0]
["PENDANT L'INTERVENTION","Anesthésie",20,"En matière d'aneshésie, je n'utilise que  des médicaments autorisés dans l’espèce bovine","Jamais",0,{"$f":"SUM(F23:F25)","v":0}]
[null,null,21,"J'applique un protocole d'anesthésie éprouvé et  auquel je suis habitué","Jamais",0]
[null,null,22,"Je dispose d'une voie veineuse disponible en cas de nécessité de perfusion per- ou post-opératoire","Jamais",0]
[null,"Temps opératoire",23,"Le choix de la voie d’abord  résulte d'une réflexion diagnostique pré-opératoire ","Jamais",0,{"$f":"SUM(F26:F30)","v":0}]
[null,null,24,"Je privilégie les techiques opératoires courtes","Jamais",0]
[null,null,25,"Je valide régulièrement les conditions de conservation, péremption  et  transport de mes consommables, en particulier le matériel de suture ","Jamais",0]
[null,null,26,"Je verifie régulièrement la qualité de mes nœuds","Jamais",0]
[null,null,27,"Je pratique une antibiothérapie/ antibioprophylaxie raisonnée","Jamais",0]
["APRES L'INTERVENTION","Information post-opératoire",28,"Je rappelle à l'éleveur la liste des principales complications immédiates qui peuvent se produire.","Jamais",0,{"$f":"SUM(F31:F34)","v":0}]
[null,null,29,"J'indique à l'éleveur, par oral et au besoin par écrit, les consignes de surveillance immédiate du réveil anesthésique: critères simples et limités d’évaluation de la progression normale du réveil","Jamais",0]
[null,null,30,"Je délivre par écrit l’énumération d’indicateurs de surveillance («clignotants ») post-opératoires et les signes d'alerte pour déclencher à temps l’intervention du praticien","Jamais",0]
[null,null,31,"Je délivre une ordonnance pour chaque prescription médicamenteuse (comportant mention expresse des médicaments utilisés pour l'intervention (dénomination, doses et répartition )","Jamais",0]
[null,"Continuité des soins à l'animal",32,"Je délivre des consignes orales et écrites pour la prescription  des mesures de contention post-opératoire ","Jamais",0,{"$f":"SUM(F35:F39)","v":0}]
[null,null,33,"Je délivre des consignes orales et  écrites   pour la prescription des mesures hygiéniques (soins de confort, paillage, ambiance atmosphérique, conditions de reprise des mouvements...) et des mesures sanitaires éventuelles ","Jamais",0]
[null,null,34,"Je délivre des consignes orales et écrites pour la reprise de l'abreuvement et de l'alimentation; je prescris autant que de besoin des mesures nutritionnelles","Jamais",0]
[null,null,35,"J'indique les conditions d'appel du praticien ou du service d'urgence en cas de nécessité d'urgence","Jamais",0]
[null,null,36,"Je réalise au moins une visite post opératoire ","Jamais",0]
["EVALUATION","Evaluation",37,"Je réalise une revue régulière des résultats de mes interventions","Jamais",0,{"$f":"SUM(F40:F43)","v":0}]
[null,null,38,"J'évalue la satisfaction de mes clients","Jamais",0]
[null,null,39,"Je suis abonné à une revue professionnelle ou à un programme de formation continue en chirurgie bovine","Jamais",0]
[null,null,40,"Je fais évoluer mes protocoles opératoires en fonction des données acquises de la science","Jamais",0]
[{"$nulls":3},"Total",{"$f":"SUM(F4:F44)","v":0}]
[]
[]
["Résultat de l'enquête d'auto - évaluation - le niveau de risque est : ",{"$nulls":3},{"$f":"IF(E44<100,\"Danger\",IF(E44<121,\"Risques avérés\",IF(E44<150,\"Peu de risque\",IF(E44<201,\"Sûr\"))))","v":"Danger"}]
[]
[]
["Résultats en jauge"]
["Danger",null,null,10]
["Risques avérés",null,null,20]
["Peu de risques ",null,null,35]
["Sûr",null,null,35]
["Zone vierge",null,null,{"$f":"SUM(D51:D54)","v":100}]
{"$rows_empty":23}
["Aiguille",null,null,{"$f":"IF(E47=\"Danger\",3,IF(E47=\"Risques avérés\",18,IF(E47=\"Peu de risque\",48,IF(E47=\"Sûr\",60))))","v":3}]
["Position aiguille",null,null,{"$f":"IF(E47=\"Danger\",3,IF(E47=\"Risques avérés\",18,IF(E47=\"Peu de risque\",48,IF(E47=\"Sûr\",80))))","v":3}]
["Largeur",null,null,3]
["Zone transparente",null,null,{"$f":"SUM(D51:D55)-(D80+D81)","v":194}]

{"sheet":"Synthèse","index":1,"n_rows":11,"n_cols":2,"rows_kept":11,"merged":[[0,0,0,1]]}
["Synthèse"]
["Diagnostic",{"$f":"Questionnaire!G4","v":0}]
["Information pré-opératoire",{"$f":"Questionnaire!G7","v":0}]
["Organisation",{"$f":"Questionnaire!G12","v":0}]
["Préparation opératoire",{"$f":"Questionnaire!G16","v":0}]
["Anesthésie",{"$f":"Questionnaire!G23","v":0}]
["Temps opératoire",{"$f":"Questionnaire!G26","v":0}]
["Information post-opératoire",{"$f":"Questionnaire!G31","v":0}]
["Continuité des soins",{"$f":"Questionnaire!G35","v":0}]
["Evaluation",{"$f":"Questionnaire!G40","v":0}]
["Total",{"$f":"SUM(B2:B10)","v":0}]